bitfinex/quotes_ETHUSD_20251111
["timestamp","ask_amount","ask_price","bid_price","bid_amount"]
[1762899742173,0.0668,3436.1,3435.8,2.05531795]
[1762899742381,0.4784,3436.5,3435.9,0.61589118]
[1762899742703,0.1835,3436.6,3436.4,1.53954444]
[1762899742888,3.09335276,3436.6,3436.5,0.61589118]
[1762899743278,3.09335276,3436.6,3436.3,0.76981593]
[1762899743279,2.91002211,3436.4,3436.3,0.76981593]
[1762899743471,2.91054278,3435.8,3435.5,2.0523303]
[1762899743725,2.91054278,3435.8,3435.4,2.0523303]
[1762899744020,0.1835,3436.6,3435.2,3.36335398]
[1762899744224,2.91024864,3436.2,3436.0,0.76976271]
[1762899744437,0.6619,3436.6,3436.0,0.76976271]
[1762899744653,3.0933551,3436.6,3436.2,0.76976271]
[1762899744928,3.09343055,3436.6,3436.3,0.76976271]
[1762899745285,2.91010296,3436.4,3435.6,3.36304302]
[1762899745479,2.90993743,3436.5,3435.6,0.4524]
[1762899745687,2.91015617,3436.3,3435.5,4.96310634]
[1762899746033,2.91035991,3436.1,3435.6,0.491]
[1762899746185,2.9103632,3436.0,3435.6,2.5433303]
[1762899746385,2.9103015,3436.1,3435.6,2.0523303]
[1762899746618,2.9103015,3436.1,3435.6,2.0533303]
[1762899746797,0.002,3436.4,3435.6,2.0533303]
[1762899747020,2.91050884,3435.9,3435.6,2.0533303]
[1762899747331,3.02731501,3435.7,3435.6,0.001]
[1762899747518,2.91061501,3435.7,3435.6,0.001]
[1762899747833,3.37211501,3435.7,3435.6,0.001]
[1762899748171,3.45971501,3435.7,3435.6,0.001]
[1762899748936,11.37648593,3435.7,3435.6,0.001]
[1762899751724,4.59345581,3435.7,3435.6,0.001]
[1762899754314,4.59345581,3435.7,3435.3,0.001]
[1762899754315,2.91086918,3435.4,3435.3,0.001]
[1762899754833,3.45596918,3435.4,3435.3,0.001]
[1762899755232,3.45596918,3435.4,3435.3,0.6251122]
[1762899755435,2.91103865,3435.2,3435.1,1.04023709]
[1762899755605,2.91163196,3434.5,3434.4,2.0523303]
[1762899755810,2.91171674,3434.4,3434.3,2.0523303]
[1762899756008,3.41171674,3434.4,3434.3,2.0523303]
[1762899756211,3.41197111,3434.1,3434.0,3.87]
[1762899756430,3.41197111,3434.1,3434.0,4.14161051]
[1762899756627,3.41197111,3434.1,3434.0,3.87]
[1762899756842,3.41222552,3433.8,3433.7,2.0523303]
[1762899757005,2.91231033,3433.7,3433.6,2.92762297]
[1762899757206,3.41231033,3433.7,3433.6,0.87529267]
[1762899757856,2.91245154,3433.6,3433.4,14.991]
[1762899758156,3.41247997,3433.5,3433.4,14.991]
[1762899758521,0.5,3433.5,3433.4,15.4695]
[1762899758846,0.5,3433.5,3433.4,1.84479267]
[1762899759161,0.1174,3434.7,3433.4,1.84479267]
[1762899759365,0.5,3433.7,3433.5,4.361]
[1762899759575,1.2511408,3434.7,3433.6,3.87]
[1762899759713,3.02893262,3434.7,3433.7,3.87]
[1762899760046,0.5,3433.8,3433.7,3.87]
[1762899760209,0.1835,3436.6,3433.7,9.38475419]
[1762899760416,6.78303012,3435.6,3434.4,2.0523303]
[1762899760636,6.78303012,3435.6,3434.1,2.5433303]
[1762899760848,2.91151736,3434.7,3434.5,14.5]
[1762899761047,0.5,3434.6,3434.5,14.5]
[1762899761560,0.5,3434.6,3434.5,0.9695]
[1762899762166,0.1167,3435.9,3434.5,0.9695]
[1762899762464,0.5,3434.9,3434.6,0.9695]
[1762899762814,0.5,3434.9,3434.8,0.4785]
[1762899763246,2.91039342,3436.0,3434.8,0.9695]
[1762899763446,0.5,3435.1,3435.0,1.56501927]
[1762899763651,0.5,3435.0,3434.9,1.56501927]
[1762899763882,3.41120815,3435.0,3434.9,1.56501927]
[1762899764267,0.5,3435.0,3434.9,2.04351927]
[1762899764761,3.41120815,3435.0,3434.9,2.04351927]
[1762899765672,0.5,3435.0,3434.9,2.91843925]
[1762899766360,3.41120815,3435.0,3434.9,2.91843925]
[1762899767104,1.69182947,3436.9,3435.0,3.082]
[1762899767256,0.1851,3438.9,3436.5,14.5]
[1762899767257,0.01182947,3437.5,3436.5,14.5]
[1762899767454,0.01182947,3437.5,3436.8,1.56501927]
[1762899767672,2.90941662,3437.2,3436.9,2.19029204]
[1762899767859,2.90941662,3437.2,3437.0,0.62527277]
[1762899768061,0.01182947,3437.5,3437.1,0.62527277]
[1762899768358,0.01182947,3437.5,3437.2,0.62527277]
[1762899768554,0.01182947,3437.5,3437.3,0.62527277]
[1762899768879,2.90835745,3438.4,3437.5,2.90907937]
[1762899769197,2.90812074,3438.7,3437.6,2.18442071]
[1762899769385,2.90859714,3438.1,3437.7,0.62527277]
[1762899769555,2.90875243,3437.9,3437.8,0.62527277]
[1762899770790,3.55535243,3437.9,3437.8,0.62527277]
[1762899770991,3.55535243,3437.9,3437.8,1.49952983]
[1762899771892,3.09385243,3437.9,3437.8,1.49952983]
[1762899772196,2.90875243,3437.9,3437.8,0.87425706]
[1762899772368,3.55535243,3437.9,3437.8,0.87425706]
[1762899772572,0.4906,3438.6,3437.8,0.92425706]
[1762899772763,0.4906,3438.6,3437.9,0.62133662]
[1762899773098,2.90883704,3437.8,3436.6,0.05]
[1762899773394,2.90933424,3437.3,3436.7,0.62148558]
[1762899773695,2.909407,3437.2,3436.8,0.62148558]
[1762899773887,2.90943579,3437.1,3436.9,0.62148558]
[1762899774088,2.90943579,3437.1,3437.0,0.62148558]
[1762899774301,3.09478342,3436.8,3436.7,0.8743284]
[1762899774465,2.90986012,3436.6,3436.1,0.05]
[1762899774660,2.90986012,3436.6,3436.2,1.49585852]
[1762899774998,2.91002211,3436.4,3436.3,0.62137975]
[1762899775184,2.91020813,3436.2,3435.6,0.05]
[1762899775497,2.9102771,3436.1,3436.0,0.87447877]
[1762899775805,3.3846771,3436.1,3436.0,0.62150069]
[1762899775960,2.91053029,3435.8,3435.7,0.87447877]
[1762899776381,0.1889,3435.9,3435.1,0.05]
[1762899776708,0.1889,3435.9,3435.2,1.49646207]
[1762899776906,0.1889,3435.9,3435.3,0.62166455]
[1762899777108,0.6777,3435.9,3435.4,0.62175265]
[1762899777389,2.91095391,3435.3,3435.2,0.87479752]
[1762899777590,2.91095391,3435.3,3435.2,1.49663397]
[1762899777973,3.87555391,3435.3,3435.2,0.62183645]
[1762899778169,2.91128941,3435.0,3434.8,0.05]
[1762899778376,2.91128941,3435.0,3434.9,1.49706914]
[1762899778765,2.91128941,3435.0,3434.9,0.62218233]
[1762899778766,3.40598941,3435.0,3434.9,0.62218233]
[1762899779084,2.91107837,3435.2,3434.6,0.87497101]
[1762899779283,2.91115976,3435.1,3434.7,0.62248629]
[1762899779598,2.91115976,3435.1,3434.6,0.87497101]
[1762899779599,0.4699,3435.8,3434.6,0.87497101]
[1762899779802,2.91132175,3434.9,3434.7,0.62247404]
[1762899779979,2.91132175,3434.9,3434.6,0.87497101]
[1762899780178,2.91137766,3434.8,3434.7,0.62246567]
[1762899780394,2.91130893,3434.9,3434.7,0.62246567]
[1762899780566,0.4699,3435.5,3434.6,0.87497101]
[1762899780770,2.91122481,3435.0,3434.7,0.62240424]
[1762899781103,0.4699,3435.5,3434.6,0.87497101]
[1762899781302,2.91125648,3435.0,3434.6,0.87497101]
[1762899781491,2.91138265,3434.8,3434.6,0.87497101]
[1762899781666,2.91086918,3435.4,3434.6,0.87497101]
[1762899781864,2.91138878,3434.8,3434.6,0.87497101]
[1762899782068,2.91123521,3435.0,3434.6,0.87497101]
[1762899782304,0.4699,3435.5,3434.6,0.87497101]
[1762899782490,2.91139135,3434.8,3434.6,0.87497101]
[1762899782692,2.91109175,3435.2,3434.6,0.87497101]
[1762899783005,0.4699,3435.5,3434.7,0.05]
[1762899783337,2.91123192,3435.0,3434.7,0.05]
[1762899783534,2.91065821,3435.7,3434.9,2.91122753]
[1762899783535,2.91069806,3435.7,3434.9,2.91122753]
[1762899783826,0.1947,3436.2,3435.0,0.62233245]
[1762899784127,2.91054435,3435.8,3434.9,2.96128465]
[1762899784419,0.1947,3436.2,3435.3,2.9109364]
[1762899784632,0.1947,3436.2,3435.2,2.91101677]
[1762899784633,2.91027618,3436.1,3435.2,2.91101677]
[1762899784813,2.91053493,3435.8,3435.2,2.91101677]
[1762899785424,2.91045003,3435.9,3435.3,14.5]
[1762899785618,2.91053213,3435.8,3435.3,14.5]
[1762899786116,2.91047015,3435.9,3435.3,14.5]
[1762899786534,0.1947,3436.2,3435.3,17.41089413]
[1762899786829,2.90921528,3437.4,3435.3,17.41089413]
[1762899786830,0.6646,3436.9,3435.5,1.1337408]
[1762899787039,0.4699,3436.8,3435.6,0.6222916]
[1762899787244,3.37966272,3436.8,3436.0,2.91030818]
[1762899787453,3.37966272,3436.8,3436.1,2.91027409]
[1762899787742,0.1947,3436.9,3436.1,2.91025425]
[1762899787890,0.1947,3436.9,3436.3,2.91003899]
[1762899788328,0.1947,3436.9,3436.0,2.91027792]
[1762899788329,3.10430971,3436.9,3436.0,2.91027792]
[1762899788525,0.4699,3437.3,3436.4,2.90997051]
[1762899788526,0.1947,3437.2,3436.4,2.90997051]
[1762899788829,2.90952875,3437.0,3436.4,2.90997051]
[1762899789003,11.28186144,3438.0,3436.4,2.90997051]
[1762899789004,0.1947,3441.0,3436.4,0.5870662]
[1762899789207,0.1947,3441.0,3438.0,14.5505]
[1762899789208,1.8747,3438.9,3438.0,14.5505]
[1762899789518,0.4699,3438.5,3437.1,0.0505]
[1762899789748,2.90840001,3438.4,3437.2,0.62137022]
[1762899789947,0.002,3438.6,3437.3,0.67187022]
[1762899790178,0.002,3438.6,3437.4,0.62137022]
[1762899790327,0.002,3438.6,3437.7,2.90884586]
[1762899790663,0.002,3438.6,3437.8,0.62118006]
[1762899790853,0.002,3438.6,3438.0,2.90861988]
[1762899791160,0.002,3438.6,3438.0,0.64386081]
[1762899791365,0.002,3438.6,3437.6,0.0505]
[1762899791565,0.002,3438.6,3438.1,2.90858092]
[1762899791738,0.002,3438.6,3438.0,2.90863905]
[1762899791938,0.002,3438.6,3437.9,2.90872606]
[1762899792135,0.002,3438.6,3438.0,3.52948235]
[1762899792451,0.002,3438.6,3438.1,3.52918467]
[1762899792648,0.002,3438.6,3438.0,2.90861096]
[1762899792857,0.002,3438.6,3438.1,0.62048233]
[1762899793163,0.002,3438.6,3437.7,2.90885104]
[1762899793164,0.002,3438.6,3437.7,1.1337408]
[1762899793340,0.002,3438.6,3437.8,3.529037]
[1762899793538,0.002,3438.6,3437.9,0.6202587]
[1762899793728,0.002,3438.6,3437.4,5.13051591]
[1762899793729,0.002,3438.6,3437.4,1.1842408]
[1762899793928,0.002,3438.6,3437.5,0.62022451]
[1762899794130,2.90859787,3438.1,3437.6,0.62022451]
[1762899794345,2.90851159,3438.2,3437.7,0.62022451]
[1762899794632,2.90860159,3438.1,3437.8,0.62022451]
[1762899794938,0.002,3438.6,3437.9,0.62005221]
[1762899795138,2.90824487,3438.5,3437.7,2.90886272]
[1762899795336,0.002,3438.6,3438.1,2.90850455]
[1762899795536,0.002,3438.6,3438.1,2.95906648]
[1762899795868,0.002,3438.6,3438.3,2.90839613]
[1762899796051,0.002,3438.6,3438.5,0.0505]
[1762899796252,0.002,3438.6,3438.5,2.95874487]
[1762899796656,0.002,3438.6,3438.5,0.0505]
[1762899797376,0.502,3438.6,3438.0,2.90866737]
[1762899797582,0.502,3438.6,3438.1,0.61945921]
[1762899797754,0.5,3438.5,3438.2,0.61945921]
[1762899797957,0.002,3438.6,3437.8,1.1337408]
[1762899798155,0.002,3438.6,3437.9,1.69739079]
[1762899798386,0.002,3438.6,3438.0,0.61944131]
[1762899798576,0.002,3438.6,3438.2,2.90849803]
[1762899799983,0.002,3438.6,3438.2,2.90844344]
[1762899800493,0.002,3438.6,3438.2,2.90843615]
[1762899800992,0.002,3438.6,3438.2,2.90843355]
[1762899801509,0.0011,3438.6,3438.5,0.0505]
[1762899801667,1.68,3438.9,3438.8,1.1337408]
[1762899801870,1.68,3438.9,3438.4,1.0371276]
[1762899801871,0.5,3438.1,3437.9,0.99961065]
[1762899802178,0.5,3437.9,3437.0,3.57337623]
[1762899802363,0.5,3437.9,3437.0,0.1667]
[1762899802564,0.6947,3437.9,3437.0,0.1667]
[1762899803089,3.40915292,3437.5,3436.6,3.40697398]
[1762899803295,0.5,3437.5,3436.7,4.04348684]
[1762899803475,3.40909629,3437.5,3436.7,4.04348684]
[1762899804184,0.5,3437.5,3436.0,0.1667]
[1762899804521,0.5,3437.0,3436.4,1.1337408]
[1762899804693,0.5,3436.7,3436.0,0.1667]
[1762899805010,2.90916638,3437.5,3435.3,7.28123012]
[1762899805011,0.6646,3436.9,3435.3,7.28123012]
[1762899805313,2.9100343,3436.4,3435.5,2.91078445]
[1762899805467,0.5,3436.2,3435.5,1.1337408]
[1762899805662,0.5,3436.1,3435.4,0.88403781]
[1762899805978,0.5,3436.1,3435.3,0.001]
[1762899806162,2.91053403,3435.8,3435.3,0.001]
[1762899806362,0.5,3436.0,3435.3,0.001]
[1762899806671,2.91055038,3435.8,3435.3,0.001]
[1762899806872,2.91069973,3435.6,3435.3,0.001]
[1762899807071,0.5,3435.4,3435.3,0.001]
[1762899807300,0.9993,3435.7,3435.3,0.001]
[1762899807813,0.5,3435.4,3435.3,0.001]
[1762899807984,3.41086918,3435.4,3435.3,0.001]
[1762899808803,3.38036918,3435.4,3435.3,0.001]
[1762899809105,4.37966918,3435.4,3435.3,0.001]
[1762899809311,0.1947,3436.9,3435.3,0.6525]
[1762899809494,0.1997,3436.9,3435.5,0.4848]
[1762899809674,0.1997,3436.9,3435.8,0.405504]
[1762899810010,0.1997,3436.9,3436.5,2.90988078]
[1762899810310,0.4993,3437.4,3436.3,0.405504]
[1762899810607,0.4993,3437.4,3436.7,2.90969089]
[1762899810911,0.4993,3437.4,3436.8,2.90968002]
[1762899811092,0.4993,3437.4,3436.9,2.90955521]
[1762899811745,0.4993,3437.4,3436.3,0.405504]
[1762899811871,0.4993,3437.4,3436.4,0.79321479]
[1762899812240,0.4993,3437.4,3436.7,2.90969273]
[1762899812368,3.40940057,3437.2,3436.4,2.91000539]
[1762899812568,3.40934771,3437.2,3436.5,2.90989983]
[1762899812810,0.5,3437.2,3436.5,2.90989983]
[1762899812973,0.5,3437.2,3436.1,0.1667]
[1762899813306,0.5,3437.2,3436.7,2.90971018]
[1762899813506,1.68,3437.8,3437.2,2.90933886]
[1762899813706,2.18,3437.8,3437.2,2.90933399]
[1762899814006,2.1792,3437.8,3436.6,0.405504]
[1762899814184,3.40892224,3437.7,3436.7,2.90976809]
[1762899814394,0.5,3437.7,3437.1,2.90942826]
[1762899814627,5.58735337,3437.8,3437.1,2.90942826]
[1762899814824,2.90893302,3437.7,3437.0,2.90950383]
[1762899814976,1.6792,3437.8,3437.7,3.07562166]
[1762899815314,0.4993,3438.5,3437.7,0.47426217]
[1762899815472,0.002,3438.6,3437.7,0.47426217]
[1762899815473,0.002,3438.6,3437.9,0.77585148]
[1762899815676,0.002,3438.6,3438.2,2.90849007]
[1762899816039,0.002,3438.6,3438.0,0.77585148]
[1762899816185,0.002,3438.6,3438.4,0.77585148]
[1762899816385,0.002,3438.6,3438.5,2.90824487]
[1762899816634,0.002,3438.6,3438.5,2.93732731]
[1762899816932,0.002,3438.6,3438.5,3.39304487]
[1762899817487,0.002,3438.6,3438.5,12.37318533]
[1762899817689,0.002,3438.6,3438.5,12.37433385]
[1762899818123,0.002,3438.6,3438.5,13.93348179]
[1762899818394,0.002,3438.6,3438.5,12.37433385]
[1762899820233,0.002,3438.6,3438.5,15.06722259]
[1762899820396,0.002,3438.6,3438.5,13.50807465]
[1762899821432,0.002,3438.6,3438.5,13.02307465]
[1762899821630,0.002,3438.6,3438.5,13.50807465]
[1762899822616,0.002,3438.6,3438.5,4.09074887]
[1762899822817,0.002,3438.6,3438.5,5.34839967]
[1762899823016,0.002,3438.6,3438.5,4.57139967]
[1762899823217,0.002,3438.6,3438.5,3.79854887]
[1762899823420,0.002,3438.6,3438.5,4.57082279]
[1762899824224,0.002,3438.6,3438.5,4.08602279]
[1762899825503,0.002,3438.6,3438.5,3.31374887]
[1762899825699,0.4715,3438.6,3438.4,0.77227392]
[1762899825899,0.4715,3438.6,3438.4,2.90832945]
[1762899825900,0.2798,3438.5,3438.4,2.90832945]
[1762899826527,0.2798,3438.5,3438.0,0.77227392]
[1762899826528,0.4695,3438.5,3438.0,0.77227392]
[1762899826717,0.2798,3438.3,3437.9,2.90872756]
[1762899827043,0.2798,3438.3,3438.0,2.90865902]
[1762899827715,0.2798,3438.3,3437.9,2.9087181]
[1762899827914,0.4993,3438.2,3437.9,2.9087181]
[1762899828508,0.4993,3438.2,3438.0,2.90866676]
[1762899828842,0.6692,3437.9,3437.8,0.001]
[1762899829340,1.1685,3437.9,3437.8,0.001]
[1762899832051,4.07725243,3437.9,3437.8,0.001]
[1762899832253,4.57725243,3437.9,3437.8,0.001]
[1762899832911,1.6685,3437.9,3437.8,0.001]
[1762899833101,4.57725243,3437.9,3437.8,0.001]
[1762899835868,5.71099323,3437.9,3437.8,0.001]
[1762899836559,2.3022408,3437.9,3436.2,0.77227392]
[1762899836724,0.2798,3436.6,3436.1,0.77227392]
[1762899837055,0.5,3437.2,3436.1,1.63984036]
[1762899837253,3.87789524,3437.2,3436.5,2.90985913]
[1762899837570,0.9685,3437.2,3436.6,2.90983648]
[1762899837864,3.37784543,3437.2,3436.2,0.1667]
[1762899838071,3.87784543,3437.2,3436.2,0.79023782]
[1762899838277,3.87784543,3437.2,3436.4,6.87494389]
[1762899838278,0.5,3437.2,3436.4,6.87494389]
[1762899838425,0.4715,3437.5,3436.4,10.55718358]
[1762899838622,0.4715,3437.5,3437.1,2.90942314]
[1762899839522,0.4715,3437.5,3437.4,0.001]
[1762899839933,0.9703,3437.5,3437.4,0.001]
[1762899840134,0.4988,3437.5,3437.4,0.001]
[1762899840554,0.9703,3437.5,3437.4,0.001]
[1762899840845,0.4988,3437.5,3437.4,0.001]
[1762899842174,0.9703,3437.5,3437.4,0.001]
[1762899842386,4.3793909,3437.5,3437.4,0.001]
[1762899843883,1.4703,3437.5,3437.4,0.001]
[1762899844063,4.3793909,3437.5,3437.4,0.001]
[1762899844661,0.4988,3437.5,3437.4,0.001]
[1762899844849,0.9703,3437.5,3437.4,0.001]
[1762899845361,1.4703,3437.5,3437.4,0.001]
[1762899846483,0.2017,3437.9,3437.4,0.4684]
[1762899846484,0.002,3437.9,3437.4,0.4684]
[1762899846686,0.002,3437.9,3437.7,2.90885239]
[1762899846892,0.002,3437.9,3437.4,0.91891]
[1762899846893,0.002,3437.9,3437.8,2.90883704]
[1762899847093,0.002,3437.9,3437.7,2.90888378]
[1762899847261,0.002,3437.9,3437.7,2.90887645]
[1762899847585,0.9703,3437.8,3437.4,0.001]
[1762899847787,0.2779,3437.5,3437.4,0.001]
[1762899847949,4.1584909,3437.5,3437.4,0.001]
[1762899848380,1.2494,3437.5,3437.4,0.001]
[1762899848594,4.1584909,3437.5,3437.4,0.001]
[1762899852375,3.6869909,3437.5,3437.4,0.001]
[1762899853000,4.1584909,3437.5,3437.4,0.001]
[1762899854095,0.5,3437.7,3437.4,0.001]
[1762899854270,0.5,3437.7,3437.6,0.4674]
[1762899854473,2.91079092,3437.9,3437.7,2.90885646]
[1762899854474,0.002,3437.9,3437.7,2.90885646]
[1762899854727,0.002,3437.9,3437.7,2.3695225]
[1762899854880,0.002,3437.9,3437.7,3.68614886]
[1762899855196,0.002,3437.9,3437.8,3.68606745]
[1762899855383,0.002,3437.9,3437.8,3.37623704]
[1762899855794,0.002,3437.9,3437.8,3.86763704]
[1762899855992,0.002,3437.9,3437.8,5.77570825]
[1762899856892,0.002,3437.9,3437.8,5.28430825]
[1762899857706,0.002,3437.9,3437.8,6.77883704]
[1762899858020,0.002,3437.9,3437.8,3.87]
[1762899858587,0.7008,3437.9,3437.8,3.87]
[1762899860818,0.002,3437.9,3437.8,3.87]
[1762899861020,0.002,3437.9,3437.8,4.9059789]
[1762899861183,0.002,3437.9,3437.8,7.81481594]
[1762899861380,0.7008,3437.9,3437.8,3.87]
[1762899862785,0.7008,3437.9,3437.7,1.0359789]
[1762899862786,1.6723,3437.9,3437.7,1.0359789]
[1762899863017,0.5,3437.6,3437.5,0.77684799]
[1762899863405,0.9988,3437.6,3437.5,15.27684799]
[1762899864086,0.9988,3437.6,3437.5,14.5]
[1762899864286,0.9988,3437.6,3437.5,15.27724486]
[1762899864699,0.202,3437.9,3437.5,15.27724486]
[1762899864915,0.4988,3437.6,3437.5,15.27724486]
[1762899865241,0.9703,3437.6,3437.5,15.27724486]
[1762899865939,0.9703,3437.6,3437.5,18.18633576]
[1762899865940,0.4988,3437.6,3437.5,18.18633576]
[1762899866517,0.5,3437.7,3437.5,18.18633576]
[1762899866848,0.5,3437.7,3437.6,3.68625114]
[1762899867049,0.002,3437.9,3437.8,2.90883704]
[1762899867255,0.002,3437.9,3437.7,0.77694279]
[1762899867546,0.002,3437.9,3437.8,4.13617983]
[1762899867708,0.002,3437.9,3437.8,3.35923704]
[1762899868043,0.002,3437.9,3437.8,4.42430431]
[1762899868242,0.002,3437.9,3437.8,4.86181594]
[1762899868440,0.1997,3440.0,3437.8,0.917]
[1762899868441,0.199,3438.9,3437.8,0.917]
[1762899868662,0.6651,3438.9,3438.6,0.77634905]
[1762899868862,0.4545,3438.7,3438.5,15.27634905]
[1762899869164,0.4661,3439.6,3438.6,3.71359094]
[1762899869371,0.5,3439.5,3438.8,0.4504]
[1762899869532,0.5,3439.5,3439.0,2.90773844]
[1762899869733,0.5,3439.5,3439.1,2.90772521]
[1762899869991,1.48908813,3442.9,3439.1,2.90772521]
[1762899869992,2.90675824,3440.3,3439.4,0.6171]
[1762899870283,0.699,3439.9,3439.6,2.90730544]
[1762899870423,0.5,3440.1,3439.7,14.5]
[1762899870871,0.5,3440.1,3440.0,2.90697674]
[1762899871028,0.5,3440.3,3439.7,14.5]
[1762899871379,0.5,3440.7,3439.8,6.7583951]
[1762899871530,0.5,3440.7,3440.1,2.90680845]
[1762899871865,3.3724419,3440.8,3439.9,2.9070491]
[1762899871866,3.3726274,3440.6,3439.9,2.9070491]
[1762899872070,0.5,3440.4,3439.8,2.9070643]
[1762899872267,0.4661,3440.5,3439.7,14.5]
[1762899872431,3.37246073,3440.8,3439.7,14.5]
[1762899872632,0.4661,3440.8,3439.7,14.5]
[1762899872829,0.5,3440.4,3439.7,14.5]
[1762899873025,3.40669691,3440.4,3439.7,14.5]
[1762899873241,3.87279691,3440.4,3439.7,17.4072154]
[1762899873468,3.40691127,3440.1,3439.7,14.5]
[1762899873624,0.5,3440.1,3439.7,14.5]
[1762899873829,0.6535,3439.8,3439.3,0.77538976]
[1762899874061,0.5,3439.7,3439.1,0.77538976]
[1762899874440,0.5,3439.7,3439.2,17.40765184]
[1762899874769,0.5,3439.4,3438.9,0.77538976]
[1762899874966,0.5,3439.6,3438.7,7.70048486]
[1762899875135,0.5,3439.6,3438.8,15.27538976]
[1762899875332,3.40757876,3439.3,3438.8,14.5]
[1762899875533,0.4545,3438.9,3438.5,0.77538976]
[1762899875733,0.4661,3439.5,3438.2,1.03513206]
[1762899875734,3.37365234,3439.4,3438.6,2.90809665]
[1762899875928,3.87365234,3439.4,3438.4,0.77538976]
[1762899876129,3.40762033,3439.3,3438.6,2.90813547]
[1762899876336,2.90762033,3439.3,3438.7,2.90807276]
[1762899876534,3.87361104,3439.4,3438.7,2.90807276]
[1762899876772,0.5,3439.4,3438.4,0.77538976]
[1762899877073,0.5,3439.4,3438.4,1.70274889]
[1762899877273,0.5,3439.4,3438.5,14.5]
[1762899877476,3.37346905,3439.6,3438.5,14.5]
[1762899877477,0.4661,3439.3,3438.6,0.0290816]
[1762899877635,0.6535,3438.7,3437.8,3.68516929]
[1762899877840,0.5,3439.2,3438.2,6.7583951]
[1762899878136,0.5,3438.8,3438.3,0.02908414]
[1762899878470,0.5,3439.0,3438.2,6.7583951]
[1762899878770,0.5,3439.2,3438.7,2.90807323]
[1762899879138,0.9661,3439.2,3438.6,2.90813982]
[1762899879474,3.87376023,3439.2,3438.6,2.90813982]
[1762899879835,3.87376023,3439.2,3438.7,14.5]
[1762899880273,0.9661,3439.2,3438.7,14.5]
[1762899880452,0.9661,3439.2,3438.7,17.40805005]
[1762899880651,3.87375711,3439.2,3438.7,14.5]
[1762899880832,0.9661,3439.1,3438.7,14.5]
[1762899881039,0.5,3438.9,3438.4,2.90831276]
[1762899881573,0.5,3438.6,3438.4,14.5]
[1762899882673,0.5,3438.6,3438.3,2.90839747]
[1762899882841,0.5,3438.6,3438.2,2.90845717]
[1762899883039,0.5,3438.6,3438.3,14.5]
[1762899883243,0.5,3438.6,3438.3,17.40840383]
[1762899883445,0.5,3438.6,3438.3,14.5]
[1762899883659,0.4545,3438.4,3438.3,14.5]
[1762899883982,0.4545,3438.4,3437.8,1.03613206]
[1762899883983,0.5,3438.0,3437.8,0.001]
[1762899884182,0.6535,3437.9,3437.8,0.001]
[1762899884497,3.56225243,3437.9,3437.8,0.001]
[1762899884859,4.52835243,3437.9,3437.8,0.001]
[1762899885302,1.1196,3437.9,3437.8,0.001]
[1762899885596,4.02835243,3437.9,3437.8,0.001]
[1762899885756,0.5,3438.9,3438.3,2.90841404]
[1762899885956,0.5,3439.1,3438.5,2.90818499]
[1762899886194,0.5,3439.1,3438.6,17.40814358]
[1762899886493,0.5,3439.1,3438.7,2.90799128]
[1762899886694,0.5,3439.1,3438.6,17.40814085]
[1762899886900,0.9661,3439.1,3438.6,2.90814085]
[1762899887413,0.9661,3439.1,3438.7,14.5]
[1762899887599,0.9661,3439.1,3438.7,17.40806662]
[1762899887904,0.6535,3438.8,3438.7,14.5]
[1762899888099,1.1535,3438.8,3438.7,14.5]
[1762899888478,1.1535,3438.8,3438.3,2.90835989]
[1762899888671,1.6196,3438.8,3438.4,2.90831819]
[1762899888888,1.1535,3438.8,3438.2,0.77284278]
[1762899889091,1.1535,3438.8,3438.3,14.5]
[1762899889478,1.1535,3438.8,3438.3,17.40836339]
[1762899889764,1.1535,3438.8,3438.4,2.90829606]
[1762899889972,1.1535,3438.8,3438.3,14.5]
[1762899890298,1.1535,3438.8,3438.3,17.40838878]
[1762899890506,0.4681,3439.3,3438.3,16.62565035]
[1762899890674,0.199,3438.9,3438.6,2.90815257]
[1762899890873,0.199,3438.9,3438.5,2.9081634]
[1762899891098,0.6651,3438.9,3438.6,2.9081435]
[1762899891301,0.6651,3438.9,3438.3,15.27284278]
[1762899891502,0.5,3438.8,3438.3,15.27284278]
[1762899891794,0.5,3438.8,3438.1,0.1667]
[1762899891795,0.4545,3438.4,3438.1,0.77284278]
[1762899892026,0.199,3438.9,3437.8,0.001]
[1762899892309,3.40817694,3438.6,3437.8,17.40983624]
[1762899892511,0.5,3438.6,3437.8,17.40983624]
[1762899892803,0.9661,3438.6,3437.8,14.501]
[1762899893100,0.9661,3438.6,3437.9,2.90870018]
[1762899893298,0.9661,3438.6,3438.1,2.90851693]
[1762899893472,2.90830784,3438.5,3437.8,2.90980589]
[1762899893793,0.9661,3438.6,3438.0,2.90864319]
[1762899894200,0.9661,3438.6,3437.8,0.001]
[1762899894422,0.9661,3438.6,3438.2,2.90842806]
[1762899894774,0.9661,3438.6,3438.1,2.90855102]
[1762899895173,0.9661,3438.6,3437.9,2.9087322]
[1762899895174,0.9661,3438.6,3437.9,2.90875243]
[1762899895486,0.199,3438.9,3438.5,2.90816855]
[1762899895686,0.199,3438.9,3438.6,2.90814721]
[1762899896288,0.199,3438.9,3438.5,2.90822197]
[1762899896588,0.201,3438.9,3438.6,2.90815992]
[1762899896795,0.002,3438.9,3438.6,2.90815992]
[1762899897782,0.002,3438.9,3438.5,2.90822137]
[1762899898310,0.1958,3438.9,3438.4,2.90827066]
[1762899898493,0.6958,3438.9,3438.4,2.90832823]
[1762899898690,0.485,3438.8,3438.2,2.90849863]
[1762899898895,0.485,3438.8,3438.3,2.90837546]
[1762899899087,0.9979,3438.2,3438.0,0.7733919]
[1762899899419,0.9979,3438.2,3437.9,3.68308999]
[1762899900208,0.5,3438.5,3438.0,3.68200573]
[1762899900424,0.485,3438.4,3437.9,0.7743919]
[1762899900628,0.5,3438.2,3437.9,0.001]